lending/lending_fUSD_20250508
["ID","MTS","AMOUNT","RATE_DAILY","PERIOD"]
[360265813,1746679832396,-4050.0,0.0001989,2]
[360265816,1746679832408,-3224.07961605,0.0001989,2]
[360265818,1746679832420,-35161.1550213,0.0001989,2]
[360265820,1746679832435,-581.76955662,0.0001989,2]
[360265823,1746679832448,-916.06829668,0.0001989,2]
[360265832,1746679837482,-19623.53302631,0.0001989,2]
[360265834,1746679837494,-413.68365288,0.0001989,2]
[360265836,1746679837537,-1988.42,0.0001989,2]
[360265837,1746679837549,-4102.55025104,0.0001989,2]
[360265838,1746679837594,-5786.30309549,0.0001989,2]
[360265839,1746679837606,-9471.01918151,0.0001989,2]
[360265840,1746679837618,-703.67620091,0.00019891,2]
[360265841,1746679837628,-703.67620091,0.00019892,2]
[360265842,1746679837639,-703.67620091,0.00019894,2]
[360265843,1746679837650,-703.67620091,0.00019895,2]
[360265844,1746679837670,-703.67620091,0.00019897,2]
[360265845,1746679837685,-717.6411,0.00019898,2]
[360265846,1746679837697,-703.67620091,0.00019898,2]
[360265847,1746679837707,-10271.1289,0.00019899,2]
[360265848,1746679837718,-7810.37828225,0.00019899,2]
[360265849,1746679837730,-7810.3782822,0.00019899,2]
[360265850,1746679837743,-7810.3782822,0.00019899,2]
[360265851,1746679837754,-7810.3782822,0.00019899,2]
[360265852,1746679837765,-7810.3782822,0.00019899,2]
[360265853,1746679837776,-642.452384,0.000199,2]
[360265854,1746679837786,-935.93185712,0.000199,2]
[360265855,1746679837795,-205.95931158,0.000199,2]
[360265856,1746679837806,-195.25863762,0.000199,3]
[360265857,1746679837816,-703.67620091,0.000199,2]
[360265858,1746679837827,-817.19631143,0.000199,2]
[360265859,1746679837837,-1462.577335,0.000199,2]
[360265860,1746679837848,-500.0,0.00019973,2]
[360265861,1746679837859,-500.0,0.00019973,2]
[360265862,1746679837869,-500.74310607,0.00019973,2]
[360265863,1746679837879,-544.56961025,0.00019973,2]
[360265864,1746679837889,-500.0,0.00019973,2]
[360265865,1746679837901,-500.0,0.00019973,2]
[360265866,1746679837913,-500.0,0.00019973,2]
[360265867,1746679837923,-500.0,0.00019973,2]
[360265868,1746679837935,-255.01631759,0.00019985,2]
[360265869,1746679837945,-450.0,0.00019985,2]
[360265870,1746679837955,-450.0,0.00019985,2]
[360265871,1746679837966,-450.0,0.00019985,2]
[360265872,1746679837977,-450.0,0.00019985,2]
[360265873,1746679837990,-450.0,0.00019985,2]
[360265874,1746679838000,-450.0,0.00019985,2]
[360265875,1746679838011,-450.0,0.00019985,2]
[360265876,1746679838022,-3349.33,0.00019985,2]
[360265877,1746679838032,-1870.61,0.00019985,2]
[360265878,1746679838043,-4636.9845152,0.00019986,2]
[360265879,1746679838053,-1966.8658428,0.00019986,2]
[360265880,1746679838064,-706.8394775,0.00019986,2]
[360265881,1746679838074,-36894.29068838,0.00019986,2]
[360265882,1746679838089,-822.38568212,0.00019986,2]
[360265883,1746679838099,-1012.0,0.0001999,2]
[360265884,1746679838109,-4067.0,0.0001999,2]
[360265885,1746679838118,-816.0656286,0.0001999,2]
[360265886,1746679838128,-816.0656286,0.0001999,2]
[360265887,1746679838138,-816.0656286,0.0001999,2]
[360265888,1746679838149,-548.18,0.00019997,2]
[360265889,1746679838159,-450.0,0.00019997,2]
[360265890,1746679838169,-482.42660409,0.00019997,2]
[360265891,1746679838179,-527.82325398,0.00019997,2]
[360265892,1746679838189,-450.0,0.00019997,2]
[360265893,1746679838199,-450.0,0.00019997,2]
[360265894,1746679838211,-450.0,0.00019997,2]
[360265895,1746679838222,-450.0,0.00019997,2]
[360265896,1746679838232,-450.0,0.00019997,2]
[360265897,1746679838242,-450.0,0.00019997,2]
[360265898,1746679838252,-450.0,0.00019997,2]
[360265899,1746679838263,-450.0,0.00019997,2]
[360265900,1746679838273,-450.0,0.00019997,2]
[360265901,1746679838283,-450.0,0.00019997,2]
[360265902,1746679838294,-450.0,0.00019997,2]
[360265903,1746679838304,-450.0,0.00019997,2]
[360265904,1746679838314,-451.2,0.00019997,2]
[360265905,1746679838324,-450.0,0.00019997,2]
[360265906,1746679838334,-450.0,0.00019997,2]
[360265907,1746679838344,-450.0,0.00019997,2]
[360265908,1746679838354,-510.08292559,0.00019997,2]
[360265909,1746679838364,-507.0237299,0.00019997,2]
[360265910,1746679838373,-450.0,0.00019997,2]
[360265911,1746679838383,-596.39408186,0.00019997,2]
[360265912,1746679838393,-556.63009545,0.00019997,2]
[360265913,1746679838404,-450.0,0.00019997,2]
[360265914,1746679838415,-4567.92,0.00019997,2]
[360265915,1746679838425,-450.0,0.00019997,2]
[360265916,1746679838435,-450.0,0.00019997,2]
[360265917,1746679838445,-450.0,0.00019997,2]
[360265918,1746679838455,-481.74326314,0.00019997,2]
[360265919,1746679838465,-450.0,0.00019997,2]
[360265920,1746679838475,-495.77,0.00019997,2]
[360265921,1746679838485,-450.0,0.00019997,2]
[360265922,1746679838496,-328.26342706,0.00019997,2]
[360265923,1746679838508,-509.55791175,0.00019997,2]
[360265924,1746679838519,-589.99,0.00019997,2]
[360265925,1746679838529,-289.39115656,0.00019998,2]
[360265926,1746679838539,-462.84291248,0.00019998,2]
[360265927,1746679838551,-450.0,0.00019998,2]
[360265928,1746679838561,-544.34067739,0.00019998,2]
[360265929,1746679838571,-450.0,0.00019998,2]
[360265930,1746679838582,-450.0,0.00019998,2]
[360265931,1746679838592,-450.0,0.00019998,2]
[360265932,1746679838602,-478.17514591,0.00019998,2]
[360265933,1746679838614,-484.57606222,0.00019998,2]
[360265934,1746679838627,-450.0,0.00019998,2]
[360265935,1746679838638,-450.0,0.00019998,2]
[360265936,1746679838648,-450.0,0.00019998,2]
[360265937,1746679838658,-450.0,0.00019998,2]
[360265938,1746679838668,-450.0,0.00019998,2]
[360265939,1746679838678,-450.0,0.00019998,2]
[360265940,1746679838688,-341.81935994,0.00019998,2]
[360265941,1746679838698,-450.0,0.00019998,2]
[360265942,1746679838708,-450.0,0.00019998,2]
[360265943,1746679838719,-450.0,0.00019998,2]
[360265944,1746679838729,-450.0,0.00019998,2]
[360265945,1746679838740,-304.89133957,0.00019998,2]
[360265946,1746679838750,-450.0,0.00019998,2]
[360265947,1746679838759,-461.09022792,0.00019998,2]
[360265948,1746679838769,-450.0,0.00019998,2]
[360265949,1746679838779,-462.32,0.00019998,2]
[360265950,1746679838789,-193.60110548,0.00019998,2]
[360265951,1746679838799,-450.0,0.00019998,2]
[360265952,1746679838809,-475.27270191,0.00019998,2]
[360265953,1746679838819,-433.37687411,0.00019998,2]
[360265954,1746679838829,-450.0,0.00019998,2]
[360265955,1746679838839,-450.0,0.00019998,2]
[360265956,1746679838849,-450.0,0.00019998,2]
[360265957,1746679838859,-487.78321652,0.00019998,2]
[360265958,1746679838869,-450.0,0.00019998,2]
[360265959,1746679838878,-450.0,0.00019998,2]
[360265960,1746679838888,-450.0,0.00019998,2]
[360265961,1746679838898,-450.0,0.00019998,2]
[360265962,1746679838907,-450.0,0.00019998,2]
[360265963,1746679838917,-450.0,0.00019998,2]
[360265964,1746679838927,-450.0,0.00019998,2]
[360265965,1746679838937,-450.0,0.00019998,2]
[360265966,1746679838947,-450.0,0.00019998,2]
[360265967,1746679838956,-450.0,0.00019998,2]
[360265968,1746679838966,-450.0,0.00019998,2]
[360265969,1746679838976,-450.0,0.00019998,2]
[360265970,1746679838990,-500.0,0.00019998,2]
[360265971,1746679839000,-500.0,0.00019998,2]
[360265972,1746679839011,-189.09601689,0.00019998,2]
[360265973,1746679839020,-500.0,0.00019998,2]
[360265974,1746679839030,-500.0,0.00019998,2]
[360265975,1746679839043,-500.0,0.00019998,2]
[360265976,1746679839057,-249.56153897,0.00019998,2]
[360265977,1746679839066,-500.0,0.00019998,2]
[360265978,1746679839076,-500.0,0.00019998,2]
[360265979,1746679839086,-500.0,0.00019998,2]
[360265980,1746679839097,-500.0,0.00019998,2]
[360265981,1746679839106,-500.0,0.00019998,2]
[360265982,1746679839116,-500.0,0.00019998,2]
[360265983,1746679839127,-500.0,0.00019998,2]
[360265984,1746679839136,-500.0,0.00019998,2]
[360265985,1746679839147,-500.0,0.00019998,2]
[360265986,1746679839157,-500.0,0.00019998,2]
[360265987,1746679839167,-500.0,0.00019998,2]
[360265988,1746679839177,-500.0,0.00019998,2]
[360265989,1746679839187,-500.0,0.00019998,2]
[360265990,1746679839197,-500.0,0.00019998,2]
[360265991,1746679839207,-500.0,0.00019998,2]
[360265992,1746679839218,-500.0,0.00019998,2]
[360265993,1746679839227,-500.0,0.00019998,2]
[360265994,1746679839237,-500.0,0.00019998,2]
[360265995,1746679839247,-500.0,0.00019998,2]
[360265996,1746679839258,-500.0,0.00019998,2]
[360265997,1746679839268,-500.0,0.00019998,2]
[360265998,1746679839278,-500.0,0.00019998,2]
[360265999,1746679839289,-500.0,0.00019998,2]
[360266000,1746679839299,-500.0,0.00019998,2]
[360266001,1746679839308,-500.0,0.00019998,2]
[360266003,1746679839319,-500.0,0.00019998,2]
[360266004,1746679839328,-500.0,0.00019998,2]
[360266005,1746679839338,-500.0,0.00019998,2]
[360266006,1746679839347,-500.0,0.00019998,2]
[360266007,1746679839357,-500.0,0.00019998,2]
[360266008,1746679839367,-500.0,0.00019998,2]
[360266009,1746679839378,-500.0,0.00019998,2]
[360266010,1746679839388,-500.0,0.00019998,2]
[360266011,1746679839398,-500.0,0.00019998,2]
[360266012,1746679839408,-500.0,0.00019998,2]
[360266013,1746679839418,-500.0,0.00019998,2]
[360266014,1746679839429,-500.0,0.00019998,2]
[360266015,1746679839439,-500.0,0.00019998,2]
[360266016,1746679839448,-500.0,0.00019998,2]
[360266017,1746679839459,-500.0,0.00019998,2]
[360266018,1746679839469,-500.0,0.00019998,2]
[360266019,1746679839480,-211.41724254,0.00019998,2]
[360266020,1746679839490,-500.0,0.00019998,2]
[360266021,1746679839500,-499.92242367,0.00019998,2]
[360266022,1746679839510,-500.0,0.00019998,2]
[360266023,1746679839520,-500.0,0.00019998,2]
[360266025,1746679839529,-500.0,0.00019998,2]
[360266026,1746679839540,-500.0,0.00019998,2]
[360266027,1746679839549,-500.0,0.00019998,2]
[360266028,1746679839560,-500.0,0.00019998,2]
[360266029,1746679839571,-500.0,0.00019998,2]
[360266030,1746679839581,-500.0,0.00019998,2]
[360266031,1746679839591,-500.0,0.00019998,2]
[360266033,1746679839601,-500.0,0.00019998,2]
[360266035,1746679839611,-500.0,0.00019998,2]
[360266037,1746679839621,-500.0,0.00019998,2]
[360266039,1746679839630,-500.0,0.00019998,2]
[360266041,1746679839640,-150.0,0.00019998,2]
[360266043,1746679839650,-500.0,0.00019998,2]
[360266045,1746679839660,-500.0,0.00019998,2]
[360266047,1746679839669,-450.0,0.00019998,2]
[360266049,1746679839679,-450.0,0.00019998,2]
[360266051,1746679839689,-433.61766064,0.00019998,2]
[360266053,1746679839699,-450.0,0.00019998,2]
[360266055,1746679839709,-450.0,0.00019998,2]
[360266058,1746679839719,-450.0,0.00019998,2]
[360266060,1746679839728,-450.0,0.00019998,2]
[360266062,1746679839737,-450.0,0.00019998,2]
[360266064,1746679839747,-450.0,0.00019998,2]
[360266065,1746679839757,-469.00686972,0.00019998,2]
[360266066,1746679839767,-450.0,0.00019998,2]
[360266067,1746679839776,-450.0,0.00019998,2]
[360266068,1746679839785,-450.0,0.00019998,2]
[360266069,1746679839795,-450.0,0.00019998,2]
[360266070,1746679839804,-450.0,0.00019998,2]
[360266071,1746679839815,-450.0,0.00019998,2]
[360266072,1746679839826,-450.0,0.00019998,2]
[360266073,1746679839837,-450.0,0.00019998,2]
[360266074,1746679839848,-450.0,0.00019998,2]
[360266075,1746679839858,-450.0,0.00019998,2]
[360266076,1746679839867,-403.35,0.00019998,2]
[360266077,1746679839877,-450.0,0.00019998,2]
[360266078,1746679839887,-450.0,0.00019998,2]
[360266079,1746679839896,-450.0,0.00019998,2]
[360266080,1746679839907,-450.0,0.00019998,2]
[360266081,1746679839916,-450.0,0.00019998,2]
[360266082,1746679839926,-450.0,0.00019998,2]
[360266083,1746679839935,-450.0,0.00019998,2]
[360266084,1746679839946,-450.0,0.00019998,2]
[360266085,1746679839956,-450.0,0.00019998,2]
[360266086,1746679839965,-450.0,0.00019998,2]
[360266087,1746679839976,-450.0,0.00019998,2]
[360266088,1746679839989,-450.0,0.00019998,2]
[360266089,1746679839999,-450.0,0.00019998,2]
[360266090,1746679840008,-450.0,0.00019998,2]
[360266091,1746679840018,-450.0,0.00019998,2]
[360266092,1746679840030,-450.0,0.00019998,2]
[360266093,1746679840040,-378.87596852,0.00019998,2]
[360266094,1746679840050,-450.0,0.00019998,2]
[360266095,1746679840060,-7538.28,0.00019998,2]
[360266096,1746679840070,-473.47056367,0.00019998,2]
[360266097,1746679840079,-450.0,0.00019998,2]
[360266098,1746679840089,-450.0,0.00019998,2]
[360266099,1746679840099,-450.0,0.00019998,2]
[360266100,1746679840110,-450.0,0.00019998,2]
[360266101,1746679840120,-2000.0,0.00019998,2]
[360266102,1746679840130,-450.0,0.00019998,2]
[360266103,1746679840139,-450.0,0.00019998,2]
[360266104,1746679840149,-333.74052033,0.00019998,2]
[360266105,1746679840159,-450.0,0.00019998,2]
[360266106,1746679840169,-450.0,0.00019998,2]
[360266107,1746679840178,-594.19625377,0.00019998,2]
[360266108,1746679840188,-450.0,0.00019998,2]
[360266109,1746679840198,-476.94601029,0.00019998,2]
[360266110,1746679840207,-1326.33,0.00019998,2]
[360266111,1746679840217,-450.0,0.00019998,2]
[360266112,1746679840226,-450.0,0.00019998,2]
[360266113,1746679840236,-450.0,0.00019998,2]
[360266114,1746679840246,-450.0,0.00019998,2]
[360266115,1746679840256,-450.0,0.00019998,2]
[360266116,1746679840266,-791.75,0.00019998,2]
[360266117,1746679840277,-244.83,0.00019998,2]
[360266118,1746679840288,-450.0,0.00019998,2]
[360266119,1746679840299,-450.0,0.00019998,2]
[360266120,1746679840310,-450.0,0.00019998,2]
[360266121,1746679840320,-450.0,0.00019998,2]
[360266122,1746679840330,-450.0,0.00019998,2]
[360266123,1746679840339,-450.0,0.00019998,2]
[360266124,1746679840349,-450.0,0.00019998,2]
[360266125,1746679840359,-450.0,0.00019998,2]
[360266126,1746679840369,-186.59,0.00019998,2]
[360266127,1746679840379,-4567.92,0.00019998,2]
[360266128,1746679840389,-450.0,0.00019998,2]
[360266130,1746679840399,-450.0,0.00019998,2]
[360266132,1746679840409,-507.18220233,0.00019998,2]
[360266134,1746679840419,-3349.33,0.00019998,2]
[360266136,1746679840428,-478.46610258,0.00019998,2]
[360266138,1746679840438,-450.0,0.00019998,2]
[360266140,1746679840447,-509.08999189,0.00019998,2]
[360266142,1746679840458,-580.23673061,0.00019998,2]
[360266144,1746679840467,-450.0,0.00019998,2]
[360266146,1746679840476,-450.0,0.00019998,2]
[360266148,1746679840486,-483.55247432,0.00019998,2]
[360266150,1746679840496,-504.68881639,0.00019998,2]
[360266152,1746679840506,-1870.61,0.00019998,2]
[360266154,1746679840518,-488.96374509,0.00019998,2]
[360266156,1746679840528,-500.0,0.00019999,2]
[360266158,1746679840537,-666.0,0.00019999,2]
[360266160,1746679840547,-300.0,0.00019999,2]
[360266162,1746679840556,-450.80909938,0.00019999,2]
[360266164,1746679840566,-879.85197213,0.00019999,2]
[360266166,1746679840576,-509.7,0.00019999,2]
[360266168,1746679840586,-450.0,0.00019999,2]
[360266170,1746679840595,-450.0,0.00019999,2]
[360266172,1746679840604,-450.0,0.00019999,2]
[360266174,1746679840614,-216.34,0.00019999,2]
[360266176,1746679840624,-597.8,0.00019999,2]
[360266178,1746679840633,-251.87,0.00019999,2]
[360266180,1746679840643,-450.0,0.00019999,2]
[360266182,1746679840652,-474.32864652,0.00019999,2]
[360266184,1746679840662,-450.0,0.00019999,2]
[360266187,1746679840671,-450.0,0.00019999,2]
[360266189,1746679840681,-450.0,0.00019999,2]
[360266191,1746679840692,-450.0,0.00019999,2]
[360266193,1746679840702,-450.0,0.00019999,2]
[360266195,1746679840711,-450.0,0.00019999,2]
[360266197,1746679840720,-450.0,0.00019999,2]
[360266199,1746679840730,-450.0,0.00019999,2]
[360266201,1746679840739,-450.0,0.00019999,2]
[360266203,1746679840749,-450.0,0.00019999,2]
[360266205,1746679840759,-450.0,0.00019999,2]
[360266207,1746679840769,-532.18,0.00019999,2]
[360266209,1746679840779,-450.0,0.00019999,2]
[360266211,1746679840788,-153.10297036,0.00019999,2]
[360266213,1746679840797,-576.49,0.00019999,2]
[360266215,1746679840807,-450.0,0.00019999,2]
[360266218,1746679840817,-450.0,0.00019999,2]
[360266220,1746679840827,-450.0,0.00019999,2]
[360266222,1746679840837,-450.0,0.00019999,2]
[360266224,1746679840847,-450.0,0.00019999,2]
[360266226,1746679840856,-450.0,0.00019999,2]
[360266228,1746679840866,-450.0,0.00019999,2]
[360266230,1746679840875,-450.0,0.00019999,2]
[360266232,1746679840885,-450.0,0.00019999,2]
[360266234,1746679840895,-450.0,0.00019999,2]
[360266236,1746679840904,-231.47863782,0.00019999,2]
[360266256,1746679841101,-450.0,0.00019999,2]
[360266258,1746679841112,-450.0,0.00019999,2]
[360266260,1746679841122,-450.0,0.00019999,2]
[360266262,1746679841132,-450.0,0.00019999,2]
[360266264,1746679841142,-450.0,0.00019999,2]
[360266266,1746679841152,-450.0,0.00019999,2]
[360266268,1746679841161,-450.0,0.00019999,2]
[360266270,1746679841170,-557.16,0.00019999,2]
[360266272,1746679841180,-450.0,0.00019999,2]
[360266274,1746679841190,-450.0,0.00019999,2]
[360266276,1746679841200,-456.63,0.00019999,2]
[360266278,1746679841209,-450.0,0.00019999,2]
[360266280,1746679841220,-450.0,0.00019999,2]
[360266282,1746679841230,-450.0,0.00019999,2]
[360266284,1746679841240,-151.0,0.00019999,2]
[360266287,1746679841254,-450.0,0.00019999,2]
[360266289,1746679841266,-450.0,0.00019999,2]
[360266291,1746679841276,-450.0,0.00019999,2]
[360266293,1746679841286,-450.0,0.00019999,2]
[360266295,1746679841298,-450.0,0.00019999,2]
[360266297,1746679841308,-450.0,0.00019999,2]
[360266299,1746679841318,-450.0,0.00019999,2]
[360266301,1746679841328,-450.0,0.00019999,2]
[360266303,1746679841338,-428.2,0.00019999,2]
[360266305,1746679841347,-151.0,0.00019999,2]
[360266307,1746679841357,-470.65,0.00019999,2]
[360266309,1746679841367,-154.257759,0.00019999,2]
[360266311,1746679841377,-361.0,0.00019999,2]
[360266313,1746679841386,-151.0,0.00019999,2]
[360266315,1746679841396,-450.0,0.00019999,2]
[360266317,1746679841406,-151.0,0.00019999,2]
[360266319,1746679841416,-209.91223658,0.00019999,2]
[360266321,1746679841425,-151.0,0.00019999,2]
[360266323,1746679841436,-450.0,0.00019999,2]
[360266325,1746679841446,-450.0,0.00019999,2]
[360266327,1746679841455,-450.0,0.00019999,2]
[360266329,1746679841465,-450.0,0.00019999,2]
[360266331,1746679841475,-450.0,0.00019999,2]
[360266333,1746679841485,-450.0,0.00019999,2]
[360266335,1746679841495,-450.0,0.00019999,2]
[360266337,1746679841505,-450.0,0.00019999,2]
[360266339,1746679841515,-450.0,0.00019999,2]
[360266341,1746679841524,-450.0,0.00019999,2]
[360266343,1746679841534,-532.98,0.00019999,2]
[360266345,1746679841544,-582.47139506,0.00019999,2]
[360266347,1746679841553,-450.0,0.00019999,2]
[360266349,1746679841566,-450.0,0.00019999,2]
[360266351,1746679841576,-450.0,0.00019999,2]
[360266353,1746679841585,-450.0,0.00019999,2]
[360266355,1746679841595,-450.0,0.00019999,2]
[360266357,1746679841606,-450.0,0.00019999,2]
[360266359,1746679841615,-450.0,0.00019999,2]
[360266361,1746679841624,-450.0,0.00019999,2]
[360266363,1746679841634,-450.0,0.00019999,2]
[360266365,1746679841644,-450.0,0.00019999,2]
[360266367,1746679841653,-450.0,0.00019999,2]
[360266369,1746679841664,-450.0,0.00019999,2]
[360266371,1746679841673,-450.0,0.00019999,2]
[360266373,1746679841683,-450.0,0.00019999,2]
[360266376,1746679841697,-450.0,0.00019999,2]
[360266378,1746679841707,-450.0,0.00019999,2]
[360266380,1746679841717,-450.0,0.00019999,2]
[360266382,1746679841726,-450.0,0.00019999,2]
[360266384,1746679841736,-450.0,0.00019999,2]
[360266386,1746679841746,-450.0,0.00019999,2]
[360266388,1746679841755,-177.89661196,0.00019999,2]
[360266390,1746679841765,-535.18,0.00019999,2]
[360266392,1746679841774,-450.0,0.00019999,2]
[360266394,1746679841784,-450.0,0.00019999,2]
[360266396,1746679841794,-586.74758558,0.00019999,2]
[360266398,1746679841803,-450.0,0.00019999,2]
[360266400,1746679841813,-450.0,0.00019999,2]
[360266402,1746679841823,-273.23548474,0.00019999,2]
[360266404,1746679841832,-450.0,0.00019999,2]
[360266406,1746679841842,-450.0,0.00019999,2]
[360266408,1746679841852,-363.66,0.00019999,2]
[360266410,1746679841861,-450.0,0.00019999,2]
[360266412,1746679841871,-450.0,0.00019999,2]
[360266414,1746679841881,-277.52,0.00019999,2]
[360266416,1746679841890,-558.50626883,0.00019999,2]
[360266418,1746679841900,-450.0,0.00019999,2]
[360266420,1746679841910,-450.0,0.00019999,2]
[360266422,1746679841919,-450.0,0.00019999,2]
[360266424,1746679841929,-450.0,0.00019999,2]
[360266426,1746679841939,-450.0,0.00019999,2]
[360266428,1746679841948,-450.0,0.00019999,2]
[360266430,1746679841961,-236.34334736,0.00019999,2]
[360266432,1746679841972,-450.0,0.00019999,2]
[360266434,1746679841983,-450.0,0.00019999,2]
[360266436,1746679841993,-450.0,0.00019999,2]
[360266438,1746679842005,-151.0,0.00019999,2]
[360266440,1746679842019,-154.319784,0.00019999,2]
[360266441,1746679842028,-477.7,0.00019999,2]
[360266444,1746679842037,-151.0,0.00019999,2]
[360266446,1746679842048,-7538.28,0.00019999,2]
[360266448,1746679842058,-7538.28,0.00019999,2]
[360266450,1746679842068,-7538.28,0.00019999,2]
[360266451,1746679842077,-7538.28,0.00019999,2]
[360266452,1746679842086,-7538.28,0.00019999,2]
[360266453,1746679842095,-7538.28,0.00019999,2]
[360266454,1746679842105,-7538.28,0.00019999,2]
[360266455,1746679842114,-7538.28,0.00019999,2]
[360266456,1746679842126,-7538.28,0.00019999,2]
[360266457,1746679842140,-7538.28,0.00019999,2]
[360266458,1746679842150,-7538.28,0.00019999,2]
[360266459,1746679842159,-7538.28,0.00019999,2]
[360266460,1746679842168,-7538.28,0.00019999,2]
[360266461,1746679842178,-7538.28,0.00019999,2]
[360266462,1746679842188,-450.0,0.00019999,2]
[360266463,1746679842198,-7538.28,0.00019999,2]
[360266464,1746679842207,-7538.28,0.00019999,2]
[360266465,1746679842217,-7538.28,0.00019999,2]
[360266466,1746679842227,-7538.28,0.00019999,2]
[360266467,1746679842238,-7538.28,0.00019999,2]
[360266469,1746679842248,-7146.40306811,0.00019999,2]
[360266472,1746679842271,-391.87693189,0.00019999,2]
[360266474,1746679842281,-383.56767837,0.00019999,2]
[360266476,1746679842293,-7154.71232163,0.00019999,2]
[360266479,1746679842303,-5603.34609087,0.00019999,2]
[360266483,1746679842320,-254.35520314,0.00019999,2]
[360266487,1746679842342,-1680.57870599,0.00019999,2]
[360266489,1746679842352,-4351.18458922,0.00019999,2]
[360266492,1746679842364,-1456.2075135,0.00019999,2]
[360266496,1746679842376,-1731.02405913,0.00019999,2]
[360266498,1746679842386,-450.0,0.00019999,2]
[360266500,1746679842395,-162.85202131,0.00019999,2]
[360266502,1746679842405,-450.0,0.00019999,2]
[360266504,1746679842415,-155.448872,0.00019999,2]
[360266506,1746679842425,-450.0,0.00019999,2]
[360266508,1746679842434,-450.0,0.00019999,2]
[360266510,1746679842443,-450.0,0.00019999,2]
[360266512,1746679842453,-376.3565132,0.00019999,2]
[360266514,1746679842462,-1326.33,0.00019999,2]
[360266516,1746679842472,-1326.33,0.00019999,2]
[360266518,1746679842482,-1326.33,0.00019999,2]
[360266520,1746679842491,-1326.33,0.00019999,2]
[360266523,1746679842501,-1326.33,0.00019999,2]
[360266525,1746679842510,-1326.33,0.00019999,2]
[360266527,1746679842519,-1326.33,0.00019999,2]
[360266530,1746679842530,-1326.33,0.00019999,2]
[360266534,1746679842539,-480.35783977,0.00019999,2]
[360266538,1746679842551,-845.97216023,0.00019999,2]
[360266542,1746679842561,-1326.33,0.00019999,2]
[360266546,1746679842570,-109.57148912,0.00019999,2]
[360266551,1746679842596,-1216.75851088,0.00019999,2]
[360266554,1746679842606,-1326.33,0.00019999,2]
[360266556,1746679842617,-1326.33,0.00019999,2]
[360266558,1746679842627,-1326.33,0.00019999,2]
[360266560,1746679842636,-840.99165826,0.00019999,2]
[360266578,1746679842799,-7810.3782822,0.000199,2]
[360266580,1746679842809,-485.33834174,0.00019999,2]
[360266582,1746679842820,-1326.33,0.00019999,2]
[360266584,1746679842830,-1326.33,0.00019999,2]
[360266586,1746679842845,-1326.33,0.00019999,2]
[360266588,1746679842855,-1326.33,0.00019999,2]
[360266590,1746679842865,-1326.33,0.00019999,2]
[360266592,1746679842875,-1326.33,0.00019999,2]
[360266594,1746679842886,-1326.33,0.00019999,2]
[360266596,1746679842895,-1326.49,0.00019999,2]
[360266598,1746679842905,-336.262484,0.00019999,2]
[360266600,1746679842914,-163.63,0.00019999,2]
[360266602,1746679842924,-151.11134013,0.00019999,2]
[360266604,1746679842935,-336.262484,0.00019999,2]
[360266606,1746679842944,-791.75,0.00019999,2]
[360266608,1746679842955,-791.75,0.00019999,2]
[360266611,1746679842966,-791.75,0.00019999,2]